fUST/lending_fUST_20250606
["ID","MTS","AMOUNT","RATE_DAILY","PERIOD"]
[364666277,1749192645977,-2924.3797251,0.00024384,20]
[364670222,1749193185435,277.730201,0.00013699,2]
[364670223,1749193295232,221.24,0.00021918,60]
[364670229,1749193538105,-150.0,0.00019713,2]
[364670230,1749193538127,-176.96482077,0.00019806,2]
[364670231,1749193538150,-277.730201,0.00020187,2]
[364670232,1749193538171,-244.513475,0.00020521,2]
[364670233,1749193538192,-500.0,0.00020692,2]
[364670234,1749193538213,-876.5481925,0.00020848,2]
[364670235,1749193538234,-181.604043,0.00021054,2]
[364670236,1749193538254,-150.0,0.00021505,2]
[364670237,1749193538274,-300.0,0.00021915,2]
[364670238,1749193538299,-1200.0,0.00021915,2]
[364670239,1749193538319,-276.50076607,0.00021915,2]
[364670241,1749193556096,-160.0,0.0002191,2]
[364670242,1749193556119,-23.49923393,0.00021915,2]
[364670243,1749193556142,-11.04682566,0.00021915,2]
[364670246,1749193628124,-272.26987749,0.00019815,2]
[364670247,1749193628146,-150.0,0.00020177,2]
[364670248,1749193628169,-300.0,0.00021915,2]
[364670249,1749193628191,-106.07928778,0.00021916,2]
[364670252,1749193636084,-162.46026486,0.00021916,2]
[364670253,1749193643085,-208.15545786,0.00021916,2]
[364670254,1749193645079,-23.3049895,0.00021916,2]
[364670255,1749193645103,-206.05091319,0.00021916,2]
[364670257,1749193650091,-293.94908681,0.00021916,2]
[364670258,1749193650114,-18.42444232,0.00021916,2]
[364670259,1749193650143,-481.57555768,0.00021916,2]
[364670260,1749193650167,-500.0,0.00021916,2]
[364670261,1749193650190,-33.00194653,0.00021916,2]
[364670262,1749193652121,-224.84603879,0.00021916,2]
[364670264,1749193743008,1000.0,0.00024,120]
[364670290,1749193831948,-150.0,0.00019728,2]
[364670292,1749193831957,-726.05300664,0.00019816,2]
[364670293,1749193831967,-4667.54310171,0.0002,2]
[364670295,1749193831977,-212.35778492,0.00021259,2]
[364670297,1749193831986,-150.0,0.00021522,2]
[364670298,1749193831996,-212.0388035,0.000219,6]
[364670299,1749193832006,-35888.80599883,0.00021916,2]
[364670300,1749193832028,-1299.73278219,0.00021916,2]
[364670301,1749193832043,-8197.45425252,0.00021916,2]
[364670303,1749193832055,-9014.47748377,0.00021916,2]
[364670304,1749193832071,-21098.71013269,0.00021916,2]
[364670305,1749193832081,-616.12524882,0.00021917,2]
[364670306,1749193832092,-453.74929096,0.00021917,2]
[364670307,1749193832102,-567.8038872,0.00021917,2]
[364670308,1749193832113,-440.0,0.00021917,2]
[364670309,1749193832125,-440.0,0.00021917,2]
[364670310,1749193832135,-430.0,0.00021917,2]
[364670311,1749193832146,-440.0,0.00021917,2]
[364670312,1749193832157,-400.0,0.00021917,2]
[364670313,1749193832167,-487.61742537,0.00021917,2]
[364670314,1749193832178,-440.0,0.00021917,2]
[364670315,1749193832188,-436.56945006,0.00021917,2]
[364670316,1749193832199,-430.0,0.00021917,2]
[364670317,1749193832210,-430.0,0.00021917,2]
[364670318,1749193832220,-380.166241,0.00021917,2]
[364670319,1749193832233,-426.80223193,0.00021917,2]
[364670320,1749193832252,-234.00821005,0.00021917,2]
[364670321,1749193832262,-404.56335098,0.00021917,2]
[364670322,1749193832272,-430.0,0.00021917,2]
[364670323,1749193832282,-500.0,0.00021917,2]
[364670324,1749193832292,-430.0,0.00021917,2]
[364670325,1749193832302,-312.39432594,0.00021917,2]
[364670326,1749193832312,-435.39868368,0.00021917,2]
[364670327,1749193832322,-440.0,0.00021917,2]
[364670328,1749193832332,-189.583,0.00021917,2]
[364670329,1749193832342,-275.63735612,0.00021917,2]
[364670330,1749193832352,-440.0,0.00021917,2]
[364670331,1749193832366,-440.0,0.00021917,2]
[364670332,1749193832376,-440.0,0.00021917,2]
[364670333,1749193832385,-440.0,0.00021917,2]
[364670334,1749193832395,-430.0,0.00021917,2]
[364670335,1749193832405,-440.0,0.00021917,2]
[364670336,1749193832415,-442.24007679,0.00021917,2]
[364670337,1749193832425,-312.575646,0.00021917,2]
[364670338,1749193832436,-448.41591678,0.00021917,2]
[364670339,1749193832446,-440.0,0.00021917,2]
[364670340,1749193832456,-342.23289694,0.00021917,2]
[364670341,1749193832466,-440.0,0.00021917,2]
[364670342,1749193832476,-430.0,0.00021917,2]
[364670343,1749193832486,-460.62282595,0.00021917,2]
[364670344,1749193832497,-440.0,0.00021917,2]
[364670345,1749193832506,-440.0,0.00021917,2]
[364670346,1749193832517,-441.65035572,0.00021917,2]
[364670347,1749193832527,-440.0,0.00021917,2]
[364670348,1749193832536,-430.0,0.00021917,2]
[364670349,1749193832546,-442.07956596,0.00021917,2]
[364670350,1749193832706,-440.0,0.00021917,2]
[364670351,1749193832717,-488.34977376,0.00021917,2]
[364670352,1749193832727,-440.0,0.00021917,2]
[364670353,1749193832737,-440.0,0.00021917,2]
[364670354,1749193832750,-440.0,0.00021917,2]
[364670355,1749193832760,-440.0,0.00021917,2]
[364670356,1749193832770,-160.0,0.00021917,2]
[364670357,1749193832779,-454.70987108,0.00021917,2]
[364670358,1749193832789,-440.0,0.00021917,2]
[364670359,1749193832798,-440.0,0.00021917,2]
[364670360,1749193832808,-430.0,0.00021917,2]
[364670361,1749193832817,-440.0,0.00021917,2]
[364670362,1749193832827,-205.53367335,0.00021917,2]
[364670363,1749193832837,-440.0,0.00021917,2]
[364670364,1749193832850,-440.0,0.00021917,2]
[364670365,1749193832859,-430.0,0.00021917,2]
[364670366,1749193832870,-430.0,0.00021917,2]
[364670367,1749193832880,-440.0,0.00021917,2]
[364670368,1749193832891,-440.0,0.00021917,2]
[364670369,1749193832901,-467.08467851,0.00021917,2]
[364670370,1749193832911,-440.0,0.00021917,2]
[364670371,1749193832922,-260.01932301,0.00021917,2]
[364670372,1749193832931,-430.0,0.00021917,2]
[364670373,1749193832941,-225.82412333,0.00021917,2]
[364670374,1749193832951,-440.0,0.00021917,2]
[364670375,1749193832961,-383.21356054,0.00021917,2]
[364670376,1749193832973,-440.0,0.00021917,2]
[364670377,1749193832985,-198.55791851,0.00021917,2]
[364670378,1749193832995,-440.0,0.00021917,2]
[364670379,1749193833004,-440.0,0.00021917,2]
[364670380,1749193833014,-570.90841972,0.00021917,2]
[364670381,1749193833025,-440.0,0.00021917,2]
[364670382,1749193833035,-440.0,0.00021917,2]
[364670383,1749193833045,-407.25868742,0.00021917,2]
[364670384,1749193833055,-356.85291492,0.00021917,2]
[364670385,1749193833066,-440.0,0.00021917,2]
[364670386,1749193833078,-440.0,0.00021917,2]
[364670387,1749193833090,-440.0,0.00021917,2]
[364670388,1749193833101,-440.0,0.00021917,2]
[364670389,1749193833111,-440.0,0.00021917,2]
[364670390,1749193833121,-440.0,0.00021917,2]
[364670391,1749193833131,-440.0,0.00021917,2]
[364670392,1749193833142,-440.0,0.00021917,2]
[364670393,1749193833152,-430.0,0.00021917,2]
[364670394,1749193833162,-440.0,0.00021917,2]
[364670395,1749193833173,-440.0,0.00021917,2]
[364670396,1749193833183,-440.0,0.00021917,2]
[364670397,1749193833193,-440.0,0.00021917,2]
[364670398,1749193833203,-440.0,0.00021917,2]
[364670399,1749193833217,-440.0,0.00021917,2]
[364670400,1749193833228,-440.0,0.00021917,2]
[364670401,1749193833239,-430.0,0.00021917,2]
[364670402,1749193833249,-445.00578594,0.00021917,2]
[364670403,1749193833260,-432.28143441,0.00021917,2]
[364670404,1749193833271,-430.0,0.00021917,2]
[364670405,1749193833281,-430.0,0.00021917,2]
[364670406,1749193833291,-440.0,0.00021917,2]
[364670407,1749193833302,-440.0,0.00021917,2]
[364670408,1749193833312,-430.0,0.00021917,2]
[364670409,1749193833323,-440.0,0.00021917,2]
[364670410,1749193833333,-430.0,0.00021917,2]
[364670411,1749193833346,-440.0,0.00021917,2]
[364670412,1749193833357,-440.0,0.00021917,2]
[364670413,1749193833370,-430.0,0.00021917,2]
[364670414,1749193833380,-440.0,0.00021917,2]
[364670415,1749193833391,-440.0,0.00021917,2]
[364670416,1749193833401,-430.0,0.00021917,2]
[364670417,1749193833413,-440.0,0.00021917,2]
[364670418,1749193833423,-440.0,0.00021917,2]
[364670419,1749193833433,-440.0,0.00021917,2]
[364670420,1749193833444,-440.0,0.00021917,2]
[364670421,1749193833454,-380.0,0.00021917,2]
[364670422,1749193833464,-440.0,0.00021917,2]
[364670423,1749193833475,-440.0,0.00021917,2]
[364670424,1749193833486,-440.0,0.00021917,2]
[364670425,1749193833497,-440.0,0.00021917,2]
[364670426,1749193833507,-440.0,0.00021917,2]
[364670427,1749193833518,-440.0,0.00021917,2]
[364670428,1749193833528,-440.0,0.00021917,2]
[364670429,1749193833539,-440.0,0.00021917,2]
[364670430,1749193833549,-439.90100698,0.00021917,2]
[364670431,1749193833560,-422.4180547,0.00021917,2]
[364670432,1749193833570,-440.0,0.00021917,2]
[364670433,1749193833580,-440.0,0.00021917,2]
[364670434,1749193833592,-440.0,0.00021917,2]
[364670435,1749193833602,-440.0,0.00021917,2]
[364670436,1749193833612,-440.0,0.00021917,2]
[364670437,1749193833622,-430.0,0.00021917,2]
[364670438,1749193833632,-440.0,0.00021917,2]
[364670439,1749193833642,-420.0,0.00021917,2]
[364670440,1749193833652,-440.0,0.00021917,2]
[364670441,1749193833662,-440.0,0.00021917,2]
[364670442,1749193833672,-400.0,0.00021917,2]
[364670443,1749193833682,-440.0,0.00021917,2]
[364670444,1749193833692,-430.0,0.00021917,2]
[364670445,1749193833701,-430.0,0.00021917,2]
[364670446,1749193833711,-440.0,0.00021917,2]
[364670447,1749193833721,-440.0,0.00021917,2]
[364670448,1749193833733,-440.0,0.00021917,2]
[364670449,1749193833743,-440.0,0.00021917,2]
[364670450,1749193833755,-500.0,0.00021917,2]
[364670451,1749193833765,-235.58194553,0.00021917,2]
[364670452,1749193833775,-440.0,0.00021917,2]
[364670453,1749193833784,-440.0,0.00021917,2]
[364670454,1749193833794,-440.0,0.00021917,2]
[364670455,1749193833804,-440.0,0.00021917,2]
[364670456,1749193833814,-500.0,0.00021917,2]
[364670457,1749193833824,-500.0,0.00021917,2]
[364670458,1749193833834,-500.0,0.00021917,2]
[364670459,1749193833845,-440.0,0.00021917,2]
[364670460,1749193833856,-440.0,0.00021917,2]
[364670461,1749193833867,-192.63745988,0.00021917,2]
[364670462,1749193833877,-430.0,0.00021917,2]
[364670463,1749193833887,-440.0,0.00021917,2]
[364670464,1749193833897,-440.0,0.00021917,2]
[364670465,1749193833907,-440.0,0.00021917,2]
[364670466,1749193833917,-406.60299656,0.00021917,2]
[364670467,1749193833932,-440.0,0.00021917,2]
[364670468,1749193833942,-440.0,0.00021917,2]
[364670469,1749193833952,-809.11,0.00021917,2]
[364670470,1749193833962,-440.0,0.00021917,2]
[364670471,1749193833972,-440.0,0.00021917,2]
[364670472,1749193833983,-430.0,0.00021917,2]
[364670473,1749193834002,-566.41,0.00021917,2]
[364670474,1749193834015,-500.0,0.00021973,2]
[364670475,1749193834025,-500.0,0.00021973,2]
[364670476,1749193834036,-278.81751924,0.00022189,2]
[364670477,1749193834046,-440.0,0.0002219,2]
[364670478,1749193834056,-440.0,0.0002219,2]
[364670479,1749193834067,-425.10959686,0.00022191,2]
[364670480,1749193834077,-420.0,0.00022191,2]
[364670481,1749193834088,-440.0,0.00022191,2]
[364670482,1749193834099,-420.0,0.00022191,2]
[364670483,1749193834109,-420.0,0.00022191,2]
[364670484,1749193834120,-567.83194408,0.00022191,2]
[364670485,1749193834130,-440.0,0.00022191,2]
[364670486,1749193834141,-440.0,0.00022191,2]
[364670487,1749193834150,-440.0,0.00022191,2]
[364670488,1749193834160,-440.0,0.00022191,2]
[364670489,1749193834170,-420.0,0.00022191,2]
[364670490,1749193834179,-443.18138622,0.00022191,2]
[364670491,1749193834190,-440.0,0.00022191,2]
[364670492,1749193834200,-440.0,0.00022191,2]
[364670493,1749193834210,-440.0,0.00022191,2]
[364670494,1749193834220,-440.0,0.00022191,2]
[364670495,1749193834230,-440.0,0.00022191,2]
[364670496,1749193834241,-440.0,0.00022191,2]
[364670497,1749193834254,-536.7536063,0.00022191,2]
[364670498,1749193834268,-440.0,0.00022191,2]
[364670499,1749193834278,-420.0,0.00022191,2]
[364670500,1749193834289,-420.0,0.00022191,2]
[364670501,1749193834299,-462.40176926,0.00022191,2]
[364670502,1749193834310,-420.0,0.00022191,2]
[364670503,1749193834320,-440.0,0.00022191,2]
[364670504,1749193834331,-447.99635171,0.00022191,2]
[364670505,1749193834341,-440.0,0.00022191,2]
[364670506,1749193834352,-440.0,0.00022191,2]
[364670507,1749193834365,-440.0,0.00022191,2]
[364670508,1749193834376,-440.0,0.00022191,2]
[364670509,1749193834386,-420.0,0.00022191,2]
[364670510,1749193834396,-420.0,0.00022191,2]
[364670511,1749193834407,-440.0,0.00022191,2]
[364670512,1749193834417,-440.0,0.00022191,2]
[364670513,1749193834427,-440.0,0.00022191,2]
[364670514,1749193834438,-440.0,0.00022191,2]
[364670515,1749193834448,-440.0,0.00022191,2]
[364670516,1749193834458,-440.0,0.00022191,2]
[364670517,1749193834469,-440.0,0.00022191,2]
[364670518,1749193834479,-440.0,0.00022191,2]
[364670519,1749193834490,-270.0,0.00022191,2]
[364670520,1749193834501,-440.0,0.00022191,2]
[364670521,1749193834511,-440.0,0.00022191,2]
[364670522,1749193834522,-440.0,0.00022191,2]
[364670523,1749193834533,-440.0,0.00022191,2]
[364670524,1749193834543,-198.21779657,0.00022191,2]
[364670525,1749193834554,-420.0,0.00022191,2]
[364670526,1749193834564,-440.0,0.00022191,2]
[364670527,1749193834575,-420.0,0.00022191,2]
[364670528,1749193834585,-440.0,0.00022191,2]
[364670529,1749193834599,-385.53112077,0.00022191,2]
[364670530,1749193834610,-440.0,0.00022191,2]
[364670531,1749193834622,-440.0,0.00022191,2]
[364670532,1749193834632,-440.0,0.00022191,2]
[364670533,1749193834643,-440.0,0.00022191,2]
[364670534,1749193834653,-320.41196301,0.00022191,2]
[364670535,1749193834663,-440.0,0.00022191,2]
[364670536,1749193834673,-440.0,0.00022191,2]
[364670537,1749193834683,-440.0,0.00022191,2]
[364670538,1749193834693,-420.0,0.00022191,2]
[364670539,1749193834703,-440.0,0.00022191,2]
[364670540,1749193834713,-440.0,0.00022191,2]
[364670541,1749193834724,-440.0,0.00022191,2]
[364670542,1749193834734,-440.0,0.00022191,2]
[364670543,1749193834743,-440.0,0.00022191,2]
[364670544,1749193834754,-194.93947362,0.00022191,2]
[364670545,1749193834763,-440.0,0.00022191,2]
[364670546,1749193834774,-440.0,0.00022191,2]
[364670547,1749193834784,-190.51631516,0.00022191,2]
[364670548,1749193834793,-440.0,0.00022191,2]
[364670549,1749193834803,-420.0,0.00022191,2]
[364670550,1749193834814,-433.3464343,0.00022191,2]
[364670551,1749193834824,-440.0,0.00022191,2]
[364670552,1749193834834,-440.0,0.00022191,2]
[364670553,1749193834848,-440.0,0.00022191,2]
[364670554,1749193834858,-440.0,0.00022191,2]
[364670555,1749193834868,-500.0,0.00022191,2]
[364670556,1749193834879,-440.0,0.00022191,2]
[364670557,1749193834889,-420.0,0.00022191,2]
[364670558,1749193834898,-440.0,0.00022191,2]
[364670559,1749193834909,-440.0,0.00022191,2]
[364670560,1749193834920,-440.0,0.00022191,2]
[364670561,1749193834930,-440.0,0.00022191,2]
[364670562,1749193834940,-440.0,0.00022191,2]
[364670563,1749193834950,-440.0,0.00022191,2]
[364670564,1749193834960,-440.0,0.00022191,2]
[364670565,1749193834970,-440.0,0.00022191,2]
[364670566,1749193834980,-440.0,0.00022191,2]
[364670567,1749193834991,-809.11,0.00022191,2]
[364670568,1749193835001,-440.0,0.00022191,2]
[364670569,1749193835011,-440.0,0.00022191,2]
[364670570,1749193835021,-212.03880349,0.00022275,6]
[364670571,1749193835031,-158.90624843,0.00022327,2]
[364670572,1749193835041,-500.9684636,0.00022334,2]
[364670573,1749193835051,-500.0,0.00022358,2]
[364670574,1749193835061,-500.0,0.00022358,2]
[364670575,1749193835072,-501.49373602,0.00022358,2]
[364670576,1749193835085,-500.0,0.00022358,2]
[364670577,1749193835098,-423.55324457,0.00022359,2]
[364670578,1749193835108,-842.5625,0.00022359,2]
[364670579,1749193835118,-160.0,0.00022359,2]
[364670580,1749193835128,-160.0,0.00022359,2]
[364670581,1749193835138,-160.0,0.00022359,2]
[364670582,1749193835148,-212.976918,0.00022359,2]
[364670583,1749193835158,-160.0,0.00022359,2]
[364670584,1749193835168,-208.33333333,0.00022359,2]
[364670585,1749193835178,-229.52673067,0.00022359,2]
[364670586,1749193835189,-502.26185461,0.00022367,2]
[364670587,1749193835199,-502.47248526,0.00022367,2]
[364670588,1749193835209,-500.0,0.00022367,2]
[364670589,1749193835219,-500.52504737,0.00022367,2]
[364670590,1749193835229,-500.34211393,0.00022367,2]
[364670591,1749193835240,-500.0,0.00022403,2]
[364670592,1749193835250,-500.0,0.00022403,2]
[364670593,1749193835260,-286.71036479,0.00022403,2]
[364670594,1749193835270,-500.0,0.0002245,2]
[364670595,1749193835280,-440.0,0.00022464,2]
[364670596,1749193835290,-440.0,0.00022464,2]
[364670597,1749193835300,-440.0,0.00022465,2]
[364670598,1749193835310,-440.0,0.00022465,2]
[364670599,1749193835321,-440.0,0.00022465,2]
[364670600,1749193835331,-440.0,0.00022465,2]
[364670601,1749193835341,-410.0,0.00022465,2]
[364670602,1749193835352,-440.0,0.00022465,2]
[364670603,1749193835365,-440.0,0.00022465,2]
[364670604,1749193835375,-410.0,0.00022465,2]
[364670605,1749193835385,-410.0,0.00022465,2]
[364670606,1749193835394,-440.0,0.00022465,2]
[364670607,1749193835535,-440.0,0.00022465,2]
[364670608,1749193835546,-440.0,0.00022465,2]
[364670609,1749193835556,-440.0,0.00022465,2]
[364670610,1749193835566,-440.0,0.00022465,2]
[364670611,1749193835576,-440.0,0.00022465,2]
[364670612,1749193835586,-440.0,0.00022465,2]
[364670613,1749193835598,-440.0,0.00022465,2]
[364670614,1749193835608,-440.0,0.00022465,2]
[364670615,1749193835618,-440.0,0.00022465,2]
[364670616,1749193835627,-440.0,0.00022465,2]
[364670617,1749193835637,-440.0,0.00022465,2]
[364670618,1749193835647,-440.0,0.00022465,2]
[364670619,1749193835657,-331.50631018,0.00022465,2]
[364670620,1749193835666,-440.0,0.00022465,2]
[364670621,1749193835676,-440.0,0.00022465,2]
[364670622,1749193835685,-440.0,0.00022465,2]
[364670623,1749193835695,-440.0,0.00022465,2]
[364670624,1749193835703,-440.0,0.00022465,2]
[364670625,1749193835713,-246.09,0.00022465,2]
[364670626,1749193835723,-440.0,0.00022465,2]
[364670627,1749193835733,-440.0,0.00022465,2]
[364670628,1749193835743,-440.0,0.00022465,2]
[364670629,1749193835753,-380.0,0.00022465,2]
[364670630,1749193835762,-440.0,0.00022465,2]
[364670631,1749193835772,-440.0,0.00022465,2]
[364670632,1749193835781,-507.59892993,0.00022465,2]
[364670633,1749193835791,-440.0,0.00022465,2]
[364670634,1749193835800,-440.0,0.00022465,2]
[364670635,1749193835811,-440.0,0.00022465,2]
[364670636,1749193835820,-440.0,0.00022465,2]
[364670637,1749193835830,-440.0,0.00022465,2]
[364670638,1749193835840,-440.0,0.00022465,2]
[364670639,1749193835850,-335.16,0.00022465,2]
[364670640,1749193835860,-440.0,0.00022465,2]
[364670641,1749193835869,-420.0,0.00022465,2]
[364670642,1749193835879,-410.0,0.00022465,2]
[364670643,1749193835888,-440.0,0.00022465,2]
[364670644,1749193835898,-440.0,0.00022465,2]
[364670645,1749193835908,-440.0,0.00022465,2]
[364670646,1749193835919,-440.0,0.00022465,2]
[364670647,1749193835928,-440.0,0.00022465,2]
[364670648,1749193835938,-809.11,0.00022465,2]
[364670649,1749193835948,-440.0,0.00022465,2]
[364670650,1749193835958,-273.6928398,0.000225,2]
[364670651,1749193835968,-504.0131275,0.00022535,2]
[364670652,1749193835978,-502.35279899,0.00022535,2]
[364670653,1749193835988,-506.67404968,0.00022535,2]
[364670654,1749193835998,-212.03880349,0.0002265,7]
[364670655,1749193836008,-606.21,0.00022738,2]
[364670656,1749193836018,-440.0,0.00022738,2]
[364670657,1749193836027,-440.0,0.00022738,2]
[364670658,1749193836038,-160.0,0.00022738,2]
[364670659,1749193836048,-400.0,0.00022739,2]
[364670660,1749193836059,-416.24098942,0.00022739,2]
[364670661,1749193836069,-440.0,0.00022739,2]
[364670662,1749193836079,-440.0,0.00022739,2]
[364670663,1749193836091,-440.0,0.00022739,2]
[364670664,1749193836100,-440.0,0.00022739,2]
[364670665,1749193836109,-440.0,0.00022739,2]
[364670666,1749193836118,-440.0,0.00022739,2]
[364670667,1749193836129,-336.53750699,0.00022739,2]
[364670668,1749193836138,-400.0,0.00022739,2]
[364670669,1749193836148,-440.0,0.00022739,2]
[364670670,1749193836158,-440.0,0.00022739,2]
[364670671,1749193836167,-440.0,0.00022739,2]
[364670672,1749193836176,-440.0,0.00022739,2]
[364670673,1749193836185,-440.0,0.00022739,2]
[364670674,1749193836195,-400.0,0.00022739,2]
[364670675,1749193836204,-440.0,0.00022739,2]
[364670676,1749193836213,-440.0,0.00022739,2]
[364670677,1749193836223,-440.0,0.00022739,2]
[364670678,1749193836232,-400.0,0.00022739,2]
[364670679,1749193836242,-440.0,0.00022739,2]
[364670680,1749193836252,-440.0,0.00022739,2]
[364670681,1749193836262,-440.0,0.00022739,2]
[364670682,1749193836271,-440.0,0.00022739,2]
[364670683,1749193836281,-440.0,0.00022739,2]
[364670684,1749193836291,-440.0,0.00022739,2]
[364670685,1749193836300,-440.0,0.00022739,2]
[364670686,1749193836311,-240.0,0.00022739,2]
[364670687,1749193836320,-440.0,0.00022739,2]
[364670688,1749193836330,-440.0,0.00022739,2]
[364670689,1749193836341,-440.0,0.00022739,2]
[364670690,1749193836350,-440.0,0.00022739,2]
[364670691,1749193836363,-400.0,0.00022739,2]
[364670692,1749193836373,-440.0,0.00022739,2]
[364670693,1749193836388,-440.0,0.00022739,2]
[364670694,1749193836404,-440.0,0.00022739,2]
[364670695,1749193836414,-440.0,0.00022739,2]
[364670696,1749193836424,-440.0,0.00022739,2]
[364670697,1749193836438,-440.0,0.00022739,2]
[364670698,1749193836448,-440.0,0.00022739,2]
[364670699,1749193836459,-440.0,0.00022739,2]
[364670700,1749193836470,-809.11,0.00022739,2]
[364670701,1749193836480,-440.0,0.00022739,2]
[364670702,1749193836490,-1000.0,0.00023,23]
[364670703,1749193836500,-440.0,0.00023012,2]
[364670704,1749193836510,-440.0,0.00023012,2]
[364670705,1749193836520,-440.0,0.00023013,2]
[364670706,1749193836530,-451.2946965,0.00023013,2]
[364670707,1749193836540,-440.0,0.00023013,2]
[364670708,1749193836551,-440.0,0.00023013,2]
[364670709,1749193836563,-440.0,0.00023013,2]
[364670710,1749193836573,-440.0,0.00023013,2]
[364670711,1749193836583,-440.0,0.00023013,2]
[364670712,1749193836594,-440.0,0.00023013,2]
[364670713,1749193836604,-440.0,0.00023013,2]
[364670714,1749193836614,-440.0,0.00023013,2]
[364670715,1749193836624,-440.0,0.00023013,2]
[364670716,1749193836635,-440.0,0.00023013,2]
[364670717,1749193836644,-440.0,0.00023013,2]
[364670718,1749193836655,-440.0,0.00023013,2]
[364670719,1749193836665,-440.0,0.00023013,2]
[364670720,1749193836675,-440.0,0.00023013,2]
[364670721,1749193836685,-440.0,0.00023013,2]
[364670722,1749193836695,-440.0,0.00023013,2]
[364670723,1749193836705,-394.18,0.00023013,2]
[364670724,1749193836715,-440.0,0.00023013,2]
[364670725,1749193836725,-440.0,0.00023013,2]
[364670726,1749193836742,-440.0,0.00023013,2]
[364670727,1749193836756,-440.0,0.00023013,2]
[364670728,1749193836771,-440.0,0.00023013,2]
[364670729,1749193836784,-440.0,0.00023013,2]
[364670730,1749193836798,-440.0,0.00023013,2]
[364670731,1749193836811,-440.0,0.00023013,2]
[364670732,1749193836823,-440.0,0.00023013,2]
[364670733,1749193836836,-440.0,0.00023013,2]
[364670734,1749193836851,-440.0,0.00023013,2]
[364670735,1749193836864,-440.0,0.00023013,2]
[364670736,1749193836877,-809.11,0.00023013,2]
[364670737,1749193836891,-440.0,0.00023013,2]
[364670738,1749193836904,-212.03880349,0.00023025,8]
[364670739,1749193836917,-557.1097652,0.00023055,2]
[364670740,1749193836929,-440.0,0.00023055,2]
[364670741,1749193836942,-440.0,0.00023055,2]
[364670742,1749193836955,-207.4,0.00023157,2]
[364670743,1749193836969,-1688.0,0.00023157,2]
[364670744,1749193836981,-500.0,0.00023157,2]
[364670745,1749193836993,-500.0,0.00023157,2]
[364670746,1749193837004,-500.0,0.00023157,2]
[364670747,1749193837016,-500.0,0.00023157,2]
[364670748,1749193837032,-500.0,0.00023157,2]
[364670749,1749193837045,-5000.0,0.00023157,2]
[364670750,1749193837057,-500.0,0.00023157,2]
[364670751,1749193837072,-500.0,0.00023157,2]
[364670752,1749193837086,-500.0,0.00023157,2]
[364670753,1749193837100,-500.0,0.00023157,2]
[364670754,1749193837113,-500.0,0.00023157,2]
[364670755,1749193837126,-500.0,0.00023157,2]
[364670756,1749193837137,-500.0,0.00023157,2]
[364670757,1749193837147,-500.0,0.00023157,2]
[364670758,1749193837158,-500.0,0.00023157,2]
[364670759,1749193837170,-500.0,0.00023157,2]
[364670760,1749193837183,-150.0,0.000232,2]
[364670761,1749193837195,-1386.19426422,0.00023212,2]